{"text_format":"2","workbook":"xlsx","n_sheets":1,"sheets":["Sheet1"],"not_rendered":{"charts":0,"images":0,"macros":0,"external_links":0,"defined_names":0,"comments":0,"pivot_tables":0},"unopened":[],"bounds":{"document_bytes":16777216,"sheet_cells":100000,"run_cost":"one","rows_first":2000,"rows_last":500,"rows_between":2000,"halvings":0,"cell_chars":16384,"cell_head_chars":4096},"cells_cut":0,"cells_raw":0,"read":"whole","date_system":"1900"}

{"sheet":"Sheet1","index":0,"n_rows":1267,"n_cols":5,"rows_kept":1267,"cut":false,"hidden":false,"merged":[]}
[null,null,"PLAYID",",","CUT/PASTE"]
[null,null,null,",",{"$f":"CONCATENATE(A2,B2,C2,D2)","v":","}]
[null,null,null,",",","]
[null,null,null,",",","]
[null,null,null,",",","]
[null,null,null,",",","]
[null,null,null,",",","]
[null,null,null,",",","]
[null,null,null,",",","]
[null,null,null,",",","]
[null,null,null,",",","]
[null,null,null,",",","]
[null,null,null,",",","]
[null,null,null,",",","]
[null,null,null,",",","]
[null,null,null,",",","]
[null,null,null,",",","]
[null,null,null,",",","]
[null,null,null,",",","]
[null,null,null,",",","]
[null,null,null,",",","]
[null,null,null,",",","]
[null,null,null,",",","]
[null,null,null,",",","]
[null,null,null,",",","]
[null,null,null,",",","]
[null,null,null,",",","]
[null,null,null,",",","]
[null,null,null,",",","]
[null,null,null,",",","]
[null,null,null,",",","]
[null,null,null,",",","]
[null,null,null,",",","]
[null,null,null,",",","]
[null,null,null,",",","]
[null,null,null,",",","]
[null,null,null,",",","]
[null,null,null,",",","]
[null,null,null,",",","]
[null,null,null,",",","]
[null,null,null,",",","]
[null,null,null,",",","]
[null,null,null,",",","]
[null,null,null,",",","]
[null,null,null,",",","]
[null,null,null,",",","]
[null,null,null,",",","]
[null,null,null,",",","]
[null,null,null,",",","]
[null,null,null,",",","]
[null,null,null,",",","]
[null,null,null,",",","]
[null,null,null,",",","]
[null,null,null,",",","]
[null,null,null,",",","]
[null,null,null,",",","]
[null,null,null,",",","]
[null,null,null,",",","]
[null,null,null,",",","]
[null,null,null,",",","]
[null,null,null,",",","]
[null,null,null,",",","]
[null,null,null,",",","]
[null,null,null,",",","]
[null,null,null,",",","]
[null,null,null,",",","]
[null,null,null,",",","]
[null,null,null,",",","]
[null,null,null,",",","]
[null,null,null,",",","]
[null,null,null,",",","]
[null,null,null,",",","]
[null,null,null,",",","]
[null,null,null,",",","]
[null,null,null,",",","]
[null,null,null,",",","]
[null,null,null,",",","]
[null,null,null,",",","]
[null,null,null,",",","]
[null,null,null,",",","]
[null,null,null,",",","]
[null,null,null,",",","]
[null,null,null,",",","]
[null,null,null,",",","]
[null,null,null,",",","]
[null,null,null,",",","]
[null,null,null,",",","]
[null,null,null,",",","]
[null,null,null,",",","]
[null,null,null,",",","]
[null,null,null,",",","]
[null,null,null,",",","]
[null,null,null,",",","]
[null,null,null,",",","]
[null,null,null,",",","]
[null,null,null,",",","]
[null,null,null,",",","]
[null,null,null,",",","]
[null,null,null,",",","]
[null,null,null,",",","]
[null,null,null,",",","]
[null,null,null,",",","]
[null,null,null,",",","]
[null,null,null,",",","]
[null,null,null,",",","]
[null,null,null,",",","]
[null,null,null,",",","]
[null,null,null,",",","]
[null,null,null,",",","]
[null,null,null,",",","]
[null,null,null,",",","]
[null,null,null,",",","]
[null,null,null,",",","]
[null,null,null,",",","]
[null,null,null,",",","]
[null,null,null,",",","]
[null,null,null,",",","]
[null,null,null,",",","]
[null,null,null,",",","]
[null,null,null,",",","]
[null,null,null,",",","]
[null,null,null,",",","]
[null,null,null,",",","]
[null,null,null,",",","]
[null,null,null,",",","]
[null,null,null,",",","]
[null,null,null,",",","]
[null,null,null,",",","]
[null,null,null,",",","]
[null,null,null,",",","]
[null,null,null,",",","]
[null,null,null,",",","]
[null,null,null,",",","]
[null,null,null,",",","]
[null,null,null,",",","]
[null,null,null,",",","]
[null,null,null,",",","]
[null,null,null,",",","]
[null,null,null,",",","]
[null,null,null,",",","]
[null,null,null,",",","]
[null,null,null,",",","]
[null,null,null,",",","]
[null,null,null,",",","]
[null,null,null,",",","]
[null,null,null,",",","]
[null,null,null,",",","]
[null,null,null,",",","]
[null,null,null,",",","]
[null,null,null,",",","]
[null,null,null,",",","]
[null,null,null,",",","]
[null,null,null,",",","]
[null,null,null,",",","]
[null,null,null,",",","]
[null,null,null,",",","]
[null,null,null,",",","]
[null,null,null,",",","]
[null,null,null,",",","]
[null,null,null,",",","]
[null,null,null,",",","]
[null,null,null,",",","]
[null,null,null,",",","]
[null,null,null,",",","]
[null,null,null,",",","]
[null,null,null,",",","]
[null,null,null,",",","]
[null,null,null,",",","]
[null,null,null,",",","]
[null,null,null,",",","]
[null,null,null,",",","]
[null,null,null,",",","]
[null,null,null,",",","]
[null,null,null,",",","]
[null,null,null,",",","]
[null,null,null,",",","]
[null,null,null,",",","]
[null,null,null,",",","]
[null,null,null,",",","]
[null,null,null,",",","]
[null,null,null,",",","]
[null,null,null,",",","]
[null,null,null,",",","]
[null,null,null,",",","]
[null,null,null,",",","]
[null,null,null,",",","]
[null,null,null,",",","]
[null,null,null,",",","]
[null,null,null,",",","]
[null,null,null,",",","]
[null,null,null,",",","]
[null,null,null,",",","]
[null,null,null,",",","]
[null,null,null,",",","]
[null,null,null,",",","]
[null,null,null,",",","]
[null,null,null,",",","]
[null,null,null,",",","]
[null,null,null,",",","]
[null,null,null,",",","]
[null,null,null,",",","]
[null,null,null,",",","]
[null,null,null,",",","]
[null,null,null,",",","]
[null,null,null,",",","]
[null,null,null,",",","]
[null,null,null,",",","]
[null,null,null,",",","]
[null,null,null,",",","]
[null,null,null,",",","]
[null,null,null,",",","]
[null,null,null,",",","]
[null,null,null,",",","]
[null,null,null,",",","]
[null,null,null,",",","]
[null,null,null,",",","]
[null,null,null,",",","]
[null,null,null,",",","]
[null,null,null,",",","]
[null,null,null,",",","]
[null,null,null,",",","]
[null,null,null,",",","]
[null,null,null,",",","]
[null,null,null,",",","]
[null,null,null,",",","]
[null,null,null,",",","]
[null,null,null,",",","]
[null,null,null,",",","]
[null,null,null,",",","]
[null,null,null,",",","]
[null,null,null,",",","]
[null,null,null,",",","]
[null,null,null,",",","]
[null,null,null,",",","]
[null,null,null,",",","]
[null,null,null,",",","]
[null,null,null,",",","]
[null,null,null,",",","]
[null,null,null,",",","]
[null,null,null,",",","]
[null,null,null,",",","]
[null,null,null,",",","]
[null,null,null,",",","]
[null,null,null,",",","]
[null,null,null,",",","]
[null,null,null,",",","]
[null,null,null,",",","]
[null,null,null,",",","]
[null,null,null,",",","]
[null,null,null,",",","]
[null,null,null,",",","]
[null,null,null,",",","]
[null,null,null,",",","]
[null,null,null,",",","]
[null,null,null,",",","]
[null,null,null,",",","]
[null,null,null,",",","]
[null,null,null,",",","]
[null,null,null,",",","]
[null,null,null,",",","]
[null,null,null,",",","]
[null,null,null,",",","]
[null,null,null,",",","]
[null,null,null,",",","]
[null,null,null,",",","]
[null,null,null,",",","]
[null,null,null,",",","]
[null,null,null,",",","]
[null,null,null,",",","]
[null,null,null,",",","]
[null,null,null,",",","]
[null,null,null,",",","]
[null,null,null,",",","]
[null,null,null,",",","]
[null,null,null,",",","]
[null,null,null,",",","]
[null,null,null,",",","]
[null,null,null,",",","]
[null,null,null,",",","]
[null,null,null,",",","]
[null,null,null,",",","]
[null,null,null,",",","]
[null,null,null,",",","]
[null,null,null,",",","]
[null,null,null,",",","]
[null,null,null,",",","]
[null,null,null,",",","]
[null,null,null,",",","]
[null,null,null,",",","]
[null,null,null,",",","]
[null,null,null,",",","]
[null,null,null,",",","]
[null,null,null,",",","]
[null,null,null,",",","]
[null,null,null,",",","]
[null,null,null,",",","]
[null,null,null,",",","]
[null,null,null,",",","]
[null,null,null,",",","]
[null,null,null,",",","]
[null,null,null,",",","]
[null,null,null,",",","]
[null,null,null,",",","]
[null,null,null,",",","]
[null,null,null,",",","]
[null,null,null,",",","]
[null,null,null,",",","]
[null,null,null,",",","]
[null,null,null,",",","]
[null,null,null,",",","]
[null,null,null,",",","]
[null,null,null,",",","]
[null,null,null,",",","]
[null,null,null,",",","]
[null,null,null,",",","]
[null,null,null,",",","]
[null,null,null,",",","]
[null,null,null,",",","]
[null,null,null,",",","]
[null,null,null,",",","]
[null,null,null,",",","]
[null,null,null,",",","]
[null,null,null,",",","]
[null,null,null,",",","]
[null,null,null,",",","]
[null,null,null,",",","]
[null,null,null,",",","]
[null,null,null,",",","]
[null,null,null,",",","]
[null,null,null,",",","]
[null,null,null,",",","]
[null,null,null,",",","]
[null,null,null,",",","]
[null,null,null,",",","]
[null,null,null,",",","]
[null,null,null,",",","]
[null,null,null,",",","]
[null,null,null,",",","]
[null,null,null,",",","]
[null,null,null,",",","]
[null,null,null,",",","]
[null,null,null,",",","]
[null,null,null,",",","]
[null,null,null,",",","]
[null,null,null,",",","]
[null,null,null,",",","]
[null,null,null,",",","]
[null,null,null,",",","]
[null,null,null,",",","]
[null,null,null,",",","]
[null,null,null,",",","]
[null,null,null,",",","]
[null,null,null,",",","]
[null,null,null,",",","]
[null,null,null,",",","]
[null,null,null,",",","]
[null,null,null,",",","]
[null,null,null,",",","]
[null,null,null,",",","]
[null,null,null,",",","]
[null,null,null,",",","]
[null,null,null,",",","]
[null,null,null,",",","]
[null,null,null,",",","]
[null,null,null,",",","]
[null,null,null,",",","]
[null,null,null,",",","]
[null,null,null,",",","]
[null,null,null,",",","]
[null,null,null,",",","]
[null,null,null,",",","]
[null,null,null,",",","]
[null,null,null,",",","]
[null,null,null,",",","]
[null,null,null,",",","]
[null,null,null,",",","]
[null,null,null,",",","]
[null,null,null,",",","]
[null,null,null,",",","]
[null,null,null,",",","]
[null,null,null,",",","]
[null,null,null,",",","]
[null,null,null,",",","]
[null,null,null,",",","]
[null,null,null,",",","]
[null,null,null,",",","]
[null,null,null,",",","]
[null,null,null,",",","]
[null,null,null,",",","]
[null,null,null,",",","]
[null,null,null,",",","]
[null,null,null,",",","]
[null,null,null,",",","]
[null,null,null,",",","]
[null,null,null,",",","]
[null,null,null,",",","]
[null,null,null,",",","]
[null,null,null,",",","]
[null,null,null,",",","]
[null,null,null,",",","]
[null,null,null,",",","]
[null,null,null,",",","]
[null,null,null,",",","]
[null,null,null,",",","]
[null,null,null,",",","]
[null,null,null,",",","]
[null,null,null,",",","]
[null,null,null,",",","]
[null,null,null,",",","]
[null,null,null,",",","]
[null,null,null,",",","]
[null,null,null,",",","]
[null,null,null,",",","]
[null,null,null,",",","]
[null,null,null,",",","]
[null,null,null,",",","]
[null,null,null,",",","]
[null,null,null,",",","]
[null,null,null,",",","]
[null,null,null,",",","]
[null,null,null,",",","]
[null,null,null,",",","]
[null,null,null,",",","]
[null,null,null,",",","]
[null,null,null,",",","]
[null,null,null,",",","]
[null,null,null,",",","]
[null,null,null,",",","]
[null,null,null,",",","]
[null,null,null,",",","]
[null,null,null,",",","]
[null,null,null,",",","]
[null,null,null,",",","]
[null,null,null,",",","]
[null,null,null,",",","]
[null,null,null,",",","]
[null,null,null,",",","]
[null,null,null,",",","]
[null,null,null,",",","]
[null,null,null,",",","]
[null,null,null,",",","]
[null,null,null,",",","]
[null,null,null,",",","]
[null,null,null,",",","]
[null,null,null,",",","]
[null,null,null,",",","]
[null,null,null,",",","]
[null,null,null,",",","]
[null,null,null,",",","]
[null,null,null,",",","]
[null,null,null,",",","]
[null,null,null,",",","]
[null,null,null,",",","]
[null,null,null,",",","]
[null,null,null,",",","]
[null,null,null,",",","]
[null,null,null,",",","]
[null,null,null,",",","]
[null,null,null,",",","]
[null,null,null,",",","]
[null,null,null,",",","]
[null,null,null,",",","]
[null,null,null,",",","]
[null,null,null,",",","]
[null,null,null,",",","]
[null,null,null,",",","]
[null,null,null,",",","]
[null,null,null,",",","]
[null,null,null,",",","]
[null,null,null,",",","]
[null,null,null,",",","]
[null,null,null,",",","]
[null,null,null,",",","]
[null,null,null,",",","]
[null,null,null,",",","]
[null,null,null,",",","]
[null,null,null,",",","]
[null,null,null,",",","]
[null,null,null,",",","]
[null,null,null,",",","]
[null,null,null,",",","]
[null,null,null,",",","]
[null,null,null,",",","]
[null,null,null,",",","]
[null,null,null,",",","]
[null,null,null,",",","]
[null,null,null,",",","]
[null,null,null,",",","]
[null,null,null,",",","]
[null,null,null,",",","]
[null,null,null,",",","]
[null,null,null,",",","]
[null,null,null,",",","]
[null,null,null,",",","]
[null,null,null,",",","]
[null,null,null,",",","]
[null,null,null,",",","]
[null,null,null,",",","]
[null,null,null,",",","]
[null,null,null,",",","]
[null,null,null,",",","]
[null,null,null,",",","]
[null,null,null,",",","]
[null,null,null,",",","]
[null,null,null,",",","]
[null,null,null,",",","]
[null,null,null,",",","]
[null,null,null,",",","]
[null,null,null,",",","]
[null,null,null,",",","]
[null,null,null,",",","]
[null,null,null,",",","]
[null,null,null,",",","]
[null,null,null,",",","]
[null,null,null,",",","]
[null,null,null,",",","]
[null,null,null,",",","]
[null,null,null,",",","]
[null,null,null,",",","]
[null,null,null,",",","]
[null,null,null,",",","]
[null,null,null,",",","]
[null,null,null,",",","]
[null,null,null,",",","]
[null,null,null,",",","]
[null,null,null,",",","]
[null,null,null,",",","]
[null,null,null,",",","]
[null,null,null,",",","]
[null,null,null,",",","]
[null,null,null,",",","]
[null,null,null,",",","]
[null,null,null,",",","]
[null,null,null,",",","]
[null,null,null,",",","]
[null,null,null,",",","]
[null,null,null,",",","]
[null,null,null,",",","]
[null,null,null,",",","]
[null,null,null,",",","]
[null,null,null,",",","]
[null,null,null,",",","]
[null,null,null,",",","]
[null,null,null,",",","]
[null,null,null,",",","]
[null,null,null,",",","]
[null,null,null,",",","]
[null,null,null,",",","]
[null,null,null,",",","]
[null,null,null,",",","]
[null,null,null,",",","]
[null,null,null,",",","]
[null,null,null,",",","]
[null,null,null,",",","]
[null,null,null,",",","]
[null,null,null,",",","]
[null,null,null,",",","]
[null,null,null,",",","]
[null,null,null,",",","]
[null,null,null,",",","]
[null,null,null,",",","]
[null,null,null,",",","]
[null,null,null,",",","]
[null,null,null,",",","]
[null,null,null,",",","]
[null,null,null,",",","]
[null,null,null,",",","]
[null,null,null,",",","]
[null,null,null,",",","]
[null,null,null,",",","]
[null,null,null,",",","]
[null,null,null,",",","]
[null,null,null,",",","]
[null,null,null,",",","]
[null,null,null,",",","]
[null,null,null,",",","]
[null,null,null,",",","]
[null,null,null,",",","]
[null,null,null,",",","]
[null,null,null,",",","]
[null,null,null,",",","]
[null,null,null,",",","]
[null,null,null,",",","]
[null,null,null,",",","]
[null,null,null,",",","]
[null,null,null,",",","]
[null,null,null,",",","]
[null,null,null,",",","]
[null,null,null,",",","]
[null,null,null,",",","]
[null,null,null,",",","]
[null,null,null,",",","]
[null,null,null,",",","]
[null,null,null,",",","]
[null,null,null,",",","]
[null,null,null,",",","]
[null,null,null,",",","]
[null,null,null,",",","]
[null,null,null,",",","]
[null,null,null,",",","]
[null,null,null,",",","]
[null,null,null,",",","]
[null,null,null,",",","]
[null,null,null,",",","]
[null,null,null,",",","]
[null,null,null,",",","]
[null,null,null,",",","]
[null,null,null,",",","]
[null,null,null,",",","]
[null,null,null,",",","]
[null,null,null,",",","]
[null,null,null,",",","]
[null,null,null,",",","]
[null,null,null,",",","]
[null,null,null,",",","]
[null,null,null,",",","]
[null,null,null,",",","]
[null,null,null,",",","]
[null,null,null,",",","]
[null,null,null,",",","]
[null,null,null,",",","]
[null,null,null,",",","]
[null,null,null,",",","]
[null,null,null,",",","]
[null,null,null,",",","]
[null,null,null,",",","]
[null,null,null,",",","]
[null,null,null,",",","]
[null,null,null,",",","]
[null,null,null,",",","]
[null,null,null,",",","]
[null,null,null,",",","]
[null,null,null,",",","]
[null,null,null,",",","]
[null,null,null,",",","]
[null,null,null,",",","]
[null,null,null,",",","]
[null,null,null,",",","]
[null,null,null,",",","]
[null,null,null,",",","]
[null,null,null,",",","]
[null,null,null,",",","]
[null,null,null,",",","]
[null,null,null,",",","]
[null,null,null,",",","]
[null,null,null,",",","]
[null,null,null,",",","]
[null,null,null,",",","]
[null,null,null,",",","]
[null,null,null,",",","]
[null,null,null,",",","]
[null,null,null,",",","]
[null,null,null,",",","]
[null,null,null,",",","]
[null,null,null,",",","]
[null,null,null,",",","]
[null,null,null,",",","]
[null,null,null,",",","]
[null,null,null,",",","]
[null,null,null,",",","]
[null,null,null,",",","]
[null,null,null,",",","]
[null,null,null,",",","]
[null,null,null,",",","]
[null,null,null,",",","]
[null,null,null,",",","]
[null,null,null,",",","]
[null,null,null,",",","]
[null,null,null,",",","]
[null,null,null,",",","]
[null,null,null,",",","]
[null,null,null,",",","]
[null,null,null,",",","]
[null,null,null,",",","]
[null,null,null,",",","]
[null,null,null,",",","]
[null,null,null,",",","]
[null,null,null,",",","]
[null,null,null,",",","]
[null,null,null,",",","]
[null,null,null,",",","]
[null,null,null,",",","]
[null,null,null,",",","]
[null,null,null,",",","]
[null,null,null,",",","]
[null,null,null,",",","]
[null,null,null,",",","]
[null,null,null,",",","]
[null,null,null,",",","]
[null,null,null,",",","]
[null,null,null,",",","]
[null,null,null,",",","]
[null,null,null,",",","]
[null,null,null,",",","]
[null,null,null,",",","]
[null,null,null,",",","]
[null,null,null,",",","]
[null,null,null,",",","]
[null,null,null,",",","]
[null,null,null,",",","]
[null,null,null,",",","]
[null,null,null,",",","]
[null,null,null,",",","]
[null,null,null,",",","]
[null,null,null,",",","]
[null,null,null,",",","]
[null,null,null,",",","]
[null,null,null,",",","]
[null,null,null,",",","]
[null,null,null,",",","]
[null,null,null,",",","]
[null,null,null,",",","]
[null,null,null,",",","]
[null,null,null,",",","]
[null,null,null,",",","]
[null,null,null,",",","]
[null,null,null,",",","]
[null,null,null,",",","]
[null,null,null,",",","]
[null,null,null,",",","]
[null,null,null,",",","]
[null,null,null,",",","]
[null,null,null,",",","]
[null,null,null,",",","]
[null,null,null,",",","]
[null,null,null,",",","]
[null,null,null,",",","]
[null,null,null,",",","]
[null,null,null,",",","]
[null,null,null,",",","]
[null,null,null,",",","]
[null,null,null,",",","]
[null,null,null,",",","]
[null,null,null,",",","]
[null,null,null,",",","]
[null,null,null,",",","]
[null,null,null,",",","]
[null,null,null,",",","]
[null,null,null,",",","]
[null,null,null,",",","]
[null,null,null,",",","]
[null,null,null,",",","]
[null,null,null,",",","]
[null,null,null,",",","]
[null,null,null,",",","]
[null,null,null,",",","]
[null,null,null,",",","]
[null,null,null,",",","]
[null,null,null,",",","]
[null,null,null,",",","]
[null,null,null,",",","]
[null,null,null,",",","]
[null,null,null,",",","]
[null,null,null,",",","]
[null,null,null,",",","]
[null,null,null,",",","]
[null,null,null,",",","]
[null,null,null,",",","]
[null,null,null,",",","]
[null,null,null,",",","]
[null,null,null,",",","]
[null,null,null,",",","]
[null,null,null,",",","]
[null,null,null,",",","]
[null,null,null,",",","]
[null,null,null,",",","]
[null,null,null,",",","]
[null,null,null,",",","]
[null,null,null,",",","]
[null,null,null,",",","]
[null,null,null,",",","]
[null,null,null,",",","]
[null,null,null,",",","]
[null,null,null,",",","]
[null,null,null,",",","]
[null,null,null,",",","]
[null,null,null,",",","]
[null,null,null,",",","]
[null,null,null,",",","]
[null,null,null,",",","]
[null,null,null,",",","]
[null,null,null,",",","]
[null,null,null,",",","]
[null,null,null,",",","]
[null,null,null,",",","]
[null,null,null,",",","]
[null,null,null,",",","]
[null,null,null,",",","]
[null,null,null,",",","]
[null,null,null,",",","]
[null,null,null,",",","]
[null,null,null,",",","]
[null,null,null,",",","]
[null,null,null,",",","]
[null,null,null,",",","]
[null,null,null,",",","]
[null,null,null,",",","]
[null,null,null,",",","]
[null,null,null,",",","]
[null,null,null,",",","]
[null,null,null,",",","]
[null,null,null,",",","]
[null,null,null,",",","]
[null,null,null,",",","]
[null,null,null,",",","]
[null,null,null,",",","]
[null,null,null,",",","]
[null,null,null,",",","]
[null,null,null,",",","]
[null,null,null,",",","]
[null,null,null,",",","]
[null,null,null,",",","]
[null,null,null,",",","]
[null,null,null,",",","]
[null,null,null,",",","]
[null,null,null,",",","]
[null,null,null,",",","]
[null,null,null,",",","]
[null,null,null,",",","]
[null,null,null,",",","]
[null,null,null,",",","]
[null,null,null,",",","]
[null,null,null,",",","]
[null,null,null,",",","]
[null,null,null,",",","]
[null,null,null,",",","]
[null,null,null,",",","]
[null,null,null,",",","]
[null,null,null,",",","]
[null,null,null,",",","]
[null,null,null,",",","]
[null,null,null,",",","]
[null,null,null,",",","]
[null,null,null,",",","]
[null,null,null,",",","]
[null,null,null,",",","]
[null,null,null,",",","]
[null,null,null,",",","]
[null,null,null,",",","]
[null,null,null,",",","]
[null,null,null,",",","]
[null,null,null,",",","]
[null,null,null,",",","]
[null,null,null,",",","]
[null,null,null,",",","]
[null,null,null,",",","]
[null,null,null,",",","]
[null,null,null,",",","]
[null,null,null,",",","]
[null,null,null,",",","]
[null,null,null,",",","]
[null,null,null,",",","]
[null,null,null,",",","]
[null,null,null,",",","]
[null,null,null,",",","]
[null,null,null,",",","]
[null,null,null,",",","]
[null,null,null,",",","]
[null,null,null,",",","]
[null,null,null,",",","]
[null,null,null,",",","]
[null,null,null,",",","]
[null,null,null,",",","]
[null,null,null,",",","]
[null,null,null,",",","]
[null,null,null,",",","]
[null,null,null,",",","]
[null,null,null,",",","]
[null,null,null,",",","]
[null,null,null,",",","]
[null,null,null,",",","]
[null,null,null,",",","]
[null,null,null,",",","]
[null,null,null,",",","]
[null,null,null,",",","]
[null,null,null,",",","]
[null,null,null,",",","]
[null,null,null,",",","]
[null,null,null,",",","]
[null,null,null,",",","]
[null,null,null,",",","]
[null,null,null,",",","]
[null,null,null,",",","]
[null,null,null,",",","]
[null,null,null,",",","]
[null,null,null,",",","]
[null,null,null,",",","]
[null,null,null,",",","]
[null,null,null,",",","]
[null,null,null,",",","]
[null,null,null,",",","]
[null,null,null,",",","]
[null,null,null,",",","]
[null,null,null,",",","]
[null,null,null,",",","]
[null,null,null,",",","]
[null,null,null,",",","]
[null,null,null,",",","]
[null,null,null,",",","]
[null,null,null,",",","]
[null,null,null,",",","]
[null,null,null,",",","]
[null,null,null,",",","]
[null,null,null,",",","]
[null,null,null,",",","]
[null,null,null,",",","]
[null,null,null,",",","]
[null,null,null,",",","]
[null,null,null,",",","]
[null,null,null,",",","]
[null,null,null,",",","]
[null,null,null,",",","]
[null,null,null,",",","]
[null,null,null,",",","]
[null,null,null,",",","]
[null,null,null,",",","]
[null,null,null,",",","]
[null,null,null,",",","]
[null,null,null,",",","]
[null,null,null,",",","]
[null,null,null,",",","]
[null,null,null,",",","]
[null,null,null,",",","]
[null,null,null,",",","]
[null,null,null,",",","]
[null,null,null,",",","]
[null,null,null,",",","]
[null,null,null,",",","]
[null,null,null,",",","]
[null,null,null,",",","]
[null,null,null,",",","]
[null,null,null,",",","]
[null,null,null,",",","]
[null,null,null,",",","]
[null,null,null,",",","]
[null,null,null,",",","]
[null,null,null,",",","]
[null,null,null,",",","]
[null,null,null,",",","]
[null,null,null,",",","]
[null,null,null,",",","]
[null,null,null,",",","]
[null,null,null,",",","]
[null,null,null,",",","]
[null,null,null,",",","]
[null,null,null,",",","]
[null,null,null,",",","]
[null,null,null,",",","]
[null,null,null,",",","]
[null,null,null,",",","]
[null,null,null,",",","]
[null,null,null,",",","]
[null,null,null,",",","]
[null,null,null,",",","]
[null,null,null,",",","]
[null,null,null,",",","]
[null,null,null,",",","]
[null,null,null,",",","]
[null,null,null,",",","]
[null,null,null,",",","]
[null,null,null,",",","]
[null,null,null,",",","]
[null,null,null,",",","]
[null,null,null,",",","]
[null,null,null,",",","]
[null,null,null,",",","]
[null,null,null,",",","]
[null,null,null,",",","]
[null,null,null,",",","]
[null,null,null,",",","]
[null,null,null,",",","]
[null,null,null,",",","]
[null,null,null,",",","]
[null,null,null,",",","]
[null,null,null,",",","]
[null,null,null,",",","]
[null,null,null,",",","]
[null,null,null,",",","]
[null,null,null,",",","]
[null,null,null,",",","]
[null,null,null,",",","]
[null,null,null,",",","]
[null,null,null,",",","]
[null,null,null,",",","]
[null,null,null,",",","]
[null,null,null,",",","]
[null,null,null,",",","]
[null,null,null,",",","]
[null,null,null,",",","]
[null,null,null,",",","]
[null,null,null,",",","]
[null,null,null,",",","]
[null,null,null,",",","]
[null,null,null,",",","]
[null,null,null,",",","]
[null,null,null,",",","]
[null,null,null,",",","]
[null,null,null,",",","]
[null,null,null,",",","]
[null,null,null,",",","]
[null,null,null,","]
[null,null,null,","]
[null,null,null,","]
[null,null,null,","]
[null,null,null,","]
[null,null,null,","]
[null,null,null,","]
[null,null,null,","]
[null,null,null,","]
[null,null,null,","]
[null,null,null,","]
[null,null,null,","]
[null,null,null,","]
[null,null,null,","]
[null,null,null,","]
[null,null,null,","]
[null,null,null,","]
[null,null,null,","]
[null,null,null,","]
[null,null,null,","]
[null,null,null,","]
[null,null,null,","]
[null,null,null,","]
[null,null,null,","]
[null,null,null,","]
[null,null,null,","]
[null,null,null,","]
[null,null,null,","]
[null,null,null,","]
[null,null,null,","]
[null,null,null,","]
[null,null,null,","]
[null,null,null,","]
[null,null,null,","]
[null,null,null,","]
[null,null,null,","]
[null,null,null,","]
[null,null,null,","]
[null,null,null,","]
[null,null,null,","]
[null,null,null,","]
[null,null,null,","]
[null,null,null,","]
[null,null,null,","]
[null,null,null,","]
[null,null,null,","]
[null,null,null,","]
[null,null,null,","]
[null,null,null,","]
[null,null,null,","]
[null,null,null,","]
[null,null,null,","]
[null,null,null,","]
[null,null,null,","]
[null,null,null,","]
[null,null,null,","]
[null,null,null,","]
[null,null,null,","]
[null,null,null,","]
[null,null,null,","]
[null,null,null,","]
[null,null,null,","]
[null,null,null,","]
[null,null,null,","]
[null,null,null,","]
[null,null,null,","]
[null,null,null,","]
[null,null,null,","]
[null,null,null,","]
[null,null,null,","]
[null,null,null,","]
[null,null,null,","]
[null,null,null,","]
[null,null,null,","]
[null,null,null,","]
[null,null,null,","]
[null,null,null,","]
[null,null,null,","]
[null,null,null,","]
[null,null,null,","]
[null,null,null,","]
[null,null,null,","]
[null,null,null,","]
[null,null,null,","]
[null,null,null,","]
[null,null,null,","]
[null,null,null,","]
[null,null,null,","]
[null,null,null,","]
[null,null,null,","]
[null,null,null,","]
[null,null,null,","]
[null,null,null,","]
[null,null,null,","]
[null,null,null,","]
[null,null,null,","]
[null,null,null,","]
[null,null,null,","]
[null,null,null,","]
[null,null,null,","]
[null,null,null,","]
[null,null,null,","]
[null,null,null,","]
[null,null,null,","]
[null,null,null,","]
[null,null,null,","]
[null,null,null,","]
[null,null,null,","]
[null,null,null,","]
[null,null,null,","]
[null,null,null,","]
[null,null,null,","]
[null,null,null,","]
[null,null,null,","]
[null,null,null,","]
[null,null,null,","]
[null,null,null,","]
[null,null,null,","]
[null,null,null,","]
[null,null,null,","]
[null,null,null,","]
[null,null,null,","]
[null,null,null,","]
[null,null,null,","]
[null,null,null,","]
[null,null,null,","]
[null,null,null,","]
[null,null,null,","]
[null,null,null,","]
[null,null,null,","]
[null,null,null,","]
[null,null,null,","]
[null,null,null,","]
[null,null,null,","]
[null,null,null,","]
[null,null,null,","]
[null,null,null,","]
[null,null,null,","]
[null,null,null,","]
[null,null,null,","]
[null,null,null,","]
[null,null,null,","]
[null,null,null,","]
[null,null,null,","]
[null,null,null,","]
[null,null,null,","]
[null,null,null,","]
[null,null,null,","]
[null,null,null,","]
[null,null,null,","]
[null,null,null,","]
[null,null,null,","]
[null,null,null,","]
[null,null,null,","]
[null,null,null,","]
[null,null,null,","]
[null,null,null,","]
[null,null,null,","]
[null,null,null,","]
[null,null,null,","]
[null,null,null,","]
[null,null,null,","]
[null,null,null,","]
[null,null,null,","]
[null,null,null,","]
[null,null,null,","]
[null,null,null,","]
[null,null,null,","]
[null,null,null,","]
[null,null,null,","]
[null,null,null,","]
[null,null,null,","]
[null,null,null,","]
[null,null,null,","]
[null,null,null,","]
[null,null,null,","]
[null,null,null,","]
[null,null,null,","]
[null,null,null,","]
[null,null,null,","]
[null,null,null,","]
[null,null,null,","]
[null,null,null,","]
[null,null,null,","]
[null,null,null,","]
[null,null,null,","]
[null,null,null,","]
[null,null,null,","]
[null,null,null,","]
[null,null,null,","]
[null,null,null,","]
[null,null,null,","]
[null,null,null,","]
[null,null,null,","]
[null,null,null,","]
[null,null,null,","]
[null,null,null,","]
[null,null,null,","]
[null,null,null,","]
[null,null,null,","]
[null,null,null,","]
[null,null,null,","]
[null,null,null,","]
[null,null,null,","]
[null,null,null,","]
[null,null,null,","]
[null,null,null,","]
[null,null,null,","]
[null,null,null,","]
[null,null,null,","]
[null,null,null,","]
[null,null,null,","]
[null,null,null,","]
[null,null,null,","]
[null,null,null,","]
[null,null,null,","]
[null,null,null,","]
[null,null,null,","]
[null,null,null,","]
[null,null,null,","]
[null,null,null,","]
[null,null,null,","]
[null,null,null,","]
[null,null,null,","]
[null,null,null,","]
[null,null,null,","]
[null,null,null,","]
[null,null,null,","]
[null,null,null,","]
[null,null,null,","]
[null,null,null,","]
[null,null,null,","]
[null,null,null,","]
[null,null,null,","]
[null,null,null,","]
[null,null,null,","]
[null,null,null,","]
[null,null,null,","]
[null,null,null,","]
[null,null,null,","]
[null,null,null,","]
[null,null,null,","]
[null,null,null,","]
[null,null,null,","]
[null,null,null,","]
[null,null,null,","]
[null,null,null,","]
[null,null,null,","]
[null,null,null,","]
[null,null,null,","]
[null,null,null,","]
[null,null,null,","]
[null,null,null,","]
[null,null,null,","]
[null,null,null,","]
[null,null,null,","]
[null,null,null,","]
[null,null,null,","]
[null,null,null,","]
[null,null,null,","]
[null,null,null,","]
[null,null,null,","]
[null,null,null,","]
[null,null,null,","]
[null,null,null,","]
[null,null,null,","]
[null,null,null,","]